bitfinex/quotes_BTCUSD_20250406
["timestamp","ask_amount","ask_price","bid_price","bid_amount"]
[1743897987493,0.34371682,83593.0,83592.0,0.0063272]
[1743897987695,0.68371682,83593.0,83592.0,0.0063272]
[1743897987922,0.68371682,83593.0,83592.0,0.0123272]
[1743897988724,0.68371682,83593.0,83592.0,0.0063272]
[1743897988884,0.72101345,83593.0,83592.0,0.0063272]
[1743897989449,0.72101345,83593.0,83592.0,0.0123272]
[1743897989628,0.72101345,83593.0,83592.0,0.0063272]
[1743897989787,0.72101345,83593.0,83592.0,0.0003272]
[1743897990128,0.68371682,83593.0,83592.0,0.0063272]
[1743897990695,0.617641,83593.0,83592.0,0.0063272]
[1743897990895,0.617641,83593.0,83592.0,0.0123272]
[1743897991305,0.617641,83593.0,83592.0,0.0063272]
[1743897991616,0.617641,83593.0,83592.0,0.0123272]
[1743897992226,0.179441,83593.0,83592.0,0.0123272]
[1743897994357,0.27434682,83593.0,83592.0,0.0123272]
[1743897994859,0.84402682,83593.0,83592.0,0.0123272]
[1743897995032,0.85856767,83593.0,83592.0,0.0123272]
[1743897995803,0.85856767,83593.0,83592.0,0.0063272]
[1743897996003,0.85856767,83593.0,83592.0,0.0123272]
[1743897996363,0.85856767,83593.0,83592.0,0.0063272]
[1743897996805,0.85856767,83593.0,83592.0,0.0123272]
[1743897997863,0.85856767,83593.0,83592.0,0.0063272]
[1743897998408,0.85856767,83593.0,83592.0,0.0123272]
[1743897999158,0.85840767,83593.0,83592.0,0.0123272]
[1743897999874,0.72368767,83593.0,83592.0,0.0123272]
[1743898000074,0.85836767,83593.0,83592.0,0.0123272]
[1743898000659,0.76346185,83593.0,83592.0,0.0123272]
[1743898004671,0.601202,83581.0,83580.0,0.0001147]
[1743898004884,0.601202,83581.0,83558.0,0.0003272]
[1743898004885,0.179513,83559.0,83558.0,0.0003272]
[1743898005081,0.179513,83559.0,83558.0,0.000458]
[1743898005730,0.19951488,83559.0,83558.0,0.000458]
[1743898005936,0.61664167,83559.0,83558.0,0.006458]
[1743898006766,0.61664167,83559.0,83558.0,0.012458]
[1743898007837,0.67427488,83559.0,83558.0,0.012458]
[1743898011567,0.67427488,83559.0,83558.0,0.00739978]
[1743898012165,0.68881573,83559.0,83558.0,0.00739978]
[1743898012372,0.68881573,83559.0,83557.0,9.8e-07]
[1743898012373,0.41170785,83558.0,83557.0,9.8e-07]
[1743898012612,0.41170785,83558.0,83555.0,9e-08]
[1743898012613,0.356968,83556.0,83555.0,9e-08]
[1743898012808,0.356968,83556.0,83555.0,0.00013655]
[1743898012809,0.49441182,83556.0,83555.0,0.00013655]
[1743898013888,0.53406885,83552.0,83538.0,0.0003274]
[1743898014088,0.70217182,83552.0,83551.0,0.00413647]
[1743898015272,0.70217182,83552.0,83551.0,4.7e-07]
[1743898015479,0.519556,83539.0,83538.0,0.0003274]
[1743898015723,0.700856,83539.0,83538.0,0.00078289]
[1743898016160,0.71539685,83539.0,83538.0,0.00078289]
[1743898016475,0.37151085,83538.0,83537.0,6.9e-07]
[1743898016627,0.37151085,83538.0,83526.0,0.0003268]
[1743898016628,0.51958,83528.0,83526.0,0.0003268]
[1743898018020,0.52967685,83528.0,83527.0,0.0053266]
[1743898019232,0.53067685,83528.0,83527.0,0.0083266]
[1743898019437,0.64367094,83528.0,83527.0,0.0083266]
[1743898022247,0.53067685,83528.0,83527.0,0.0083266]
[1743898022733,0.66571685,83528.0,83527.0,0.0083266]
[1743898025400,0.52158,83528.0,83527.0,0.0083266]
[1743898026075,0.002,83528.0,83527.0,0.0083266]
[1743898026286,0.013972,83528.0,83527.0,0.0083266]
[1743898026420,0.002,83528.0,83527.0,0.13122957]
[1743898026622,0.002,83528.0,83527.0,0.14320157]
[1743898026824,0.002,83528.0,83527.0,0.18910157]
[1743898027376,0.002,83528.0,83527.0,0.23949565]
[1743898027522,0.001,83528.0,83527.0,0.23210157]
[1743898027726,0.002,83528.0,83527.0,0.23710157]
[1743898027948,0.242,83528.0,83527.0,0.23710157]
[1743898028163,0.001,83528.0,83527.0,0.23210157]
[1743898028358,0.002,83528.0,83527.0,0.23710157]
[1743898029192,0.001,83528.0,83527.0,0.23410157]
[1743898029594,0.001,83528.0,83527.0,0.24010157]
[1743898030023,0.001,83528.0,83527.0,0.23410157]
[1743898030343,0.001,83528.0,83527.0,0.24010157]
[1743898032183,0.001,83528.0,83527.0,0.22812957]
[1743898032384,0.001,83528.0,83527.0,0.24010157]
[1743898033632,0.001,83528.0,83527.0,0.22812957]
[1743898033792,0.001,83528.0,83527.0,0.13422957]
[1743898034630,0.011971,83529.0,83527.0,0.12322957]
[1743898034934,0.011971,83529.0,83528.0,0.12290297]
[1743898035646,0.167605,83530.0,83528.0,0.12290297]
[1743898036221,0.011971,83529.0,83528.0,0.12290297]
[1743898036422,0.17958,83528.0,83527.0,0.0003266]
[1743898036622,0.17958,83528.0,83527.0,0.12322957]
[1743898037029,0.17958,83528.0,83527.0,0.0003266]
[1743898037232,0.24202203,83528.0,83527.0,0.0003266]
[1743898037398,0.58202203,83528.0,83527.0,0.0003266]
[1743898037827,0.58202203,83528.0,83527.0,0.0063266]
[1743898038041,0.58202203,83528.0,83527.0,0.0003266]
[1743898038452,0.58202203,83528.0,83527.0,0.0063266]
[1743898038756,0.51958,83528.0,83527.0,0.0063266]
[1743898039505,0.51958,83528.0,83527.0,0.0123266]
[1743898039756,0.75958,83528.0,83527.0,0.0123266]
[1743898039967,0.51958,83528.0,83527.0,0.0063266]
[1743898040342,0.51958,83528.0,83527.0,0.0123266]
[1743898040844,0.51958,83528.0,83527.0,0.0063266]
[1743898041166,0.51958,83528.0,83527.0,0.0123266]
[1743898042171,0.6086499,83528.0,83527.0,0.0123266]
[1743898042522,0.51958,83528.0,83527.0,0.0123266]
[1743898045309,0.53077288,83528.0,83527.0,0.0123266]
[1743898048115,0.51958,83528.0,83527.0,0.0123266]
[1743898052167,0.79958,83528.0,83527.0,0.0063266]
[1743898052462,0.51958,83528.0,83527.0,0.0003266]
[1743898052662,0.6221779,83528.0,83527.0,0.0113266]
[1743898053109,0.6221779,83528.0,83527.0,0.0053266]
[1743898054281,0.6221779,83528.0,83527.0,0.0113266]
[1743898055564,0.65949016,83528.0,83527.0,0.0113266]
[1743898055900,0.6221779,83528.0,83527.0,0.0113266]
[1743898056735,0.63671875,83528.0,83527.0,0.0113266]
[1743898057236,0.80842172,83528.0,83527.0,6e-07]
[1743898057413,0.84573419,83528.0,83527.0,6e-07]
[1743898057739,0.179648,83496.0,83491.0,0.0517]
[1743898057878,0.011975,83502.0,83492.0,0.12290297]
[1743898058097,0.011976,83495.0,83492.0,0.12290297]
[1743898058342,0.02976649,83495.0,83492.0,0.12290297]
[1743898058643,0.179652,83495.0,83492.0,0.12290297]
[1743898058840,0.167676,83495.0,83492.0,0.12290297]
[1743898059065,0.16813172,83495.0,83492.0,0.12290297]
[1743898059349,0.167677,83494.0,83492.0,0.12290297]
[1743898059843,0.179653,83494.0,83492.0,0.12290297]
[1743898060818,0.179657,83492.0,83491.0,0.0517]
[1743898061125,0.179657,83492.0,83491.0,0.004]
[1743898061526,0.180653,83494.0,83491.0,0.004]
[1743898061902,0.001,83492.0,83491.0,0.004]
[1743898062902,0.002,83492.0,83491.0,0.007]
[1743898063347,0.16968,83492.0,83491.0,0.007]
[1743898063570,0.23886952,83492.0,83491.0,0.007]
[1743898064408,0.57886952,83492.0,83491.0,0.007]
[1743898067960,0.521657,83492.0,83491.0,0.007]
[1743898068299,0.342,83492.0,83491.0,0.007]
[1743898068460,0.002,83492.0,83491.0,0.007]
[1743898069356,0.013977,83492.0,83491.0,0.007]
[1743898070480,0.013977,83492.0,83491.0,0.0071637]
[1743898071337,0.179656,83493.0,83491.0,0.0071637]
[1743898071749,0.167679,83493.0,83491.0,0.0071637]
[1743898071905,0.0191992,83495.0,83492.0,0.12290297]
[1743898072288,0.0311752,83495.0,83492.0,0.12290297]
[1743898072553,0.0301752,83495.0,83492.0,0.12290297]
[1743898072709,0.001,83493.0,83492.0,0.12290297]
[1743898073173,0.0301752,83495.0,83492.0,0.12290297]
[1743898073364,0.0311752,83495.0,83492.0,0.12790297]
[1743898073506,0.001,83493.0,83492.0,0.12790297]
[1743898073708,0.001,83493.0,83492.0,0.12290297]
[1743898073907,0.011977,83493.0,83492.0,0.12290297]
[1743898074344,0.012977,83493.0,83492.0,0.12590297]
[1743898075129,0.013977,83493.0,83492.0,0.13090297]
[1743898076642,0.002,83493.0,83492.0,0.13090297]
[1743898077712,0.272,83493.0,83492.0,0.13090297]
[1743898077903,0.002,83493.0,83492.0,0.13090297]
[1743898079543,0.002,83493.0,83492.0,0.3591552]
[1743898079706,0.002,83493.0,83492.0,0.35675997]
[1743898080334,0.002,83493.0,83492.0,0.40235997]
[1743898080737,0.826925,83535.0,83525.0,0.011972]
[1743898080939,0.011971,83530.0,83526.0,0.11939639]
[1743898081184,0.011972,83527.0,83526.0,0.11939639]
[1743898081364,0.167606,83529.0,83526.0,0.11939639]
[1743898081779,0.011971,83530.0,83526.0,0.11939639]
[1743898081968,0.011971,83530.0,83526.0,0.11953293]
[1743898082165,0.167602,83532.0,83526.0,0.12553293]
[1743898082365,0.167602,83532.0,83526.0,0.11953293]
[1743898082601,0.011971,83533.0,83526.0,0.11953293]
[1743898082801,0.01840545,83533.0,83527.0,0.011972]
[1743898083003,0.01840545,83533.0,83528.0,0.29051097]
[1743898083305,0.64736,83535.0,83528.0,0.29051097]
[1743898083505,0.64736,83535.0,83528.0,0.12290297]
[1743898084093,0.167606,83529.0,83528.0,0.12290297]
[1743898084615,0.179577,83529.0,83528.0,0.12290297]
[1743898085114,0.179575,83530.0,83528.0,0.13290297]
[1743898085461,0.179575,83530.0,83528.0,0.12790297]
[1743898085674,0.179575,83530.0,83528.0,0.13390297]
[1743898085877,0.179575,83530.0,83528.0,0.12790297]
[1743898086308,0.179575,83530.0,83528.0,0.12890297]
[1743898086829,0.179575,83530.0,83528.0,0.13490297]
[1743898087037,0.011971,83529.0,83528.0,0.12890297]
[1743898087427,0.011971,83529.0,83528.0,0.13490297]
[1743898087865,0.011971,83529.0,83528.0,0.12890297]
[1743898088069,0.179575,83530.0,83528.0,0.12290297]
[1743898088284,0.011971,83529.0,83528.0,0.12890297]
[1743898088624,0.011971,83529.0,83528.0,0.13490297]
[1743898089512,0.011971,83529.0,83528.0,0.12890297]
[1743898089709,0.01777804,83533.0,83528.0,0.12890297]
[1743898089907,0.01777804,83533.0,83528.0,0.13490297]
[1743898090116,0.1984999,83536.0,83533.0,0.167598]
[1743898090435,0.5384999,83536.0,83535.0,0.179565]
[1743898090593,0.34,83536.0,83535.0,0.30246797]
[1743898090755,0.0001637,83537.0,83536.0,0.01197]
[1743898090957,0.0001637,83537.0,83536.0,0.18477297]
[1743898091363,0.0001637,83537.0,83536.0,0.17280297]
[1743898091565,0.0121337,83537.0,83536.0,0.12290297]
[1743898092119,0.0121337,83537.0,83536.0,0.12890297]
[1743898092686,0.0121337,83537.0,83536.0,0.13490297]
[1743898092883,0.02997702,83537.0,83536.0,0.012]
[1743898093124,0.0121337,83537.0,83536.0,0.012]
[1743898093331,0.0121337,83537.0,83536.0,0.018]
[1743898093690,0.0121337,83537.0,83536.0,0.012]
[1743898094146,0.0121337,83537.0,83536.0,0.018]
[1743898095554,0.0121337,83537.0,83536.0,0.006]
[1743898095895,0.011971,83533.0,83526.0,0.00013654]
[1743898096130,0.011971,83533.0,83527.0,0.12290297]
[1743898097434,0.1676,83532.0,83527.0,0.12290297]
[1743898098080,0.1676,83532.0,83527.0,0.12890297]
[1743898098439,0.1676,83532.0,83527.0,0.12290297]
[1743898098640,0.1676,83532.0,83527.0,0.12890297]
[1743898099158,0.1676,83532.0,83527.0,0.13490297]
[1743898099762,0.179569,83533.0,83527.0,0.13490297]
[1743898100166,0.179565,83535.0,83527.0,0.13490297]
[1743898100505,0.179569,83534.0,83527.0,0.13490297]
[1743898100709,0.179569,83534.0,83527.0,0.12890297]
[1743898101350,0.179569,83534.0,83527.0,0.13490297]
[1743898101520,0.179569,83534.0,83527.0,0.12890297]
[1743898102125,0.179569,83534.0,83527.0,0.13490297]
[1743898102866,0.179569,83534.0,83527.0,0.12890297]
[1743898103340,0.179569,83534.0,83527.0,0.13490297]
[1743898104605,0.011971,83534.0,83527.0,0.30251197]
[1743898105211,0.179568,83534.0,83527.0,0.13490297]
[1743898105849,0.167602,83531.0,83527.0,0.13490297]
[1743898106009,0.167598,83533.0,83527.0,0.13490297]
[1743898106569,0.167589,83538.0,83527.0,0.13490297]
[1743898106871,0.11379116,83538.0,83527.0,0.13490297]
[1743898107015,0.17877097,83537.0,83527.0,0.12890297]
[1743898107241,0.17877097,83537.0,83527.0,0.13490297]
[1743898107467,0.17877097,83537.0,83527.0,0.30251197]
[1743898107468,0.01197,83536.0,83527.0,0.30251197]
[1743898107751,0.19074097,83537.0,83531.0,0.167601]
[1743898107956,0.19074097,83537.0,83531.0,0.29050397]
[1743898108174,0.01118097,83536.0,83531.0,0.29050397]
[1743898108381,0.01118097,83536.0,83531.0,0.12290297]
[1743898108560,0.01118097,83536.0,83531.0,0.18280912]
[1743898109057,0.01118097,83536.0,83531.0,0.35040912]
[1743898109267,0.01118097,83536.0,83531.0,0.35640912]
[1743898109479,0.02854397,83538.0,83531.0,0.35640912]
[1743898109480,0.01118097,83535.0,83531.0,0.36838012]
[1743898110578,0.1679184,83537.0,83531.0,0.19480912]
[1743898110782,0.1679184,83537.0,83531.0,0.13490297]
[1743898111071,0.1679184,83537.0,83531.0,0.12890297]
[1743898111520,0.1679184,83537.0,83531.0,0.12290297]
[1743898111870,0.1679184,83537.0,83531.0,0.12890297]
[1743898112040,0.01121513,83536.0,83531.0,0.29650397]
[1743898112240,0.01121513,83536.0,83531.0,0.29050397]
[1743898112440,0.01121513,83536.0,83531.0,0.30250397]
[1743898112882,0.01121513,83536.0,83531.0,0.29650397]
[1743898113259,0.01121513,83535.0,83531.0,0.29650397]
[1743898113419,0.01121513,83535.0,83532.0,0.06679332]
[1743898113791,0.01121513,83535.0,83534.0,0.179567]
[1743898114060,0.0003274,83537.0,83536.0,0.179562]
[1743898114262,0.0003274,83537.0,83536.0,0.30246497]
[1743898114763,0.01154237,83537.0,83536.0,0.30246497]
[1743898114921,0.01154237,83537.0,83536.0,0.4033917]
[1743898115751,0.01154237,83537.0,83536.0,0.4093917]
[1743898117304,0.01154237,83537.0,83536.0,0.4153917]
[1743898117647,0.0003274,83537.0,83536.0,0.4153917]
[1743898117899,0.0003274,83537.0,83536.0,0.31446497]
[1743898118103,0.0003274,83537.0,83536.0,0.13490297]
[1743898118603,0.1798874,83537.0,83536.0,0.13490297]
[1743898119010,0.1798874,83537.0,83536.0,0.012]
[1743898119610,0.179582,83527.0,83516.0,0.060373]
[1743898119820,0.179582,83527.0,83526.0,0.12320321]
[1743898121789,0.179582,83527.0,83526.0,0.12920321]
[1743898122633,0.179582,83527.0,83526.0,0.13520321]
[1743898123902,0.179582,83527.0,83526.0,0.01230024]
[1743898125180,0.179582,83527.0,83526.0,0.00630024]
[1743898125398,0.5734557,83527.0,83526.0,0.00630024]
[1743898125689,0.6198557,83527.0,83526.0,0.01230024]
[1743898125925,0.6670557,83527.0,83526.0,0.01830024]
[1743898126103,0.6670557,83527.0,83526.0,0.01230024]
[1743898126311,0.6670557,83527.0,83526.0,0.00630024]
[1743898126925,0.613182,83527.0,83526.0,0.00630024]
[1743898127106,0.748342,83527.0,83526.0,0.00630024]
[1743898127489,0.748342,83527.0,83526.0,0.01230024]
[1743898127891,0.4704026,83527.0,83526.0,0.01230024]
[1743898128514,0.6380126,83527.0,83526.0,0.01230024]
[1743898128716,1.02970136,83527.0,83526.0,0.00630024]
[1743898128922,0.74970136,83527.0,83526.0,0.00630024]
[1743898129156,0.74970136,83527.0,83526.0,0.01230024]
[1743898130314,0.76424221,83527.0,83526.0,2.4e-07]
[1743898131469,0.76424221,83527.0,83493.0,0.0498]
[1743898131470,0.167669,83498.0,83493.0,0.0498]
[1743898131690,0.011976,83500.0,83494.0,0.12290297]
[1743898131892,0.179621,83509.0,83500.0,0.167663]
[1743898132119,0.179626,83507.0,83501.0,0.12290297]
[1743898132291,0.179629,83506.0,83501.0,0.12290297]
[1743898132496,0.17963,83505.0,83501.0,0.12290297]
[1743898133080,0.179633,83504.0,83501.0,0.12290297]
[1743898134043,0.179635,83503.0,83501.0,0.12290297]
[1743898134447,0.179635,83503.0,83501.0,0.12690297]
[1743898135023,0.179635,83503.0,83501.0,0.12990297]
[1743898135226,0.179635,83503.0,83501.0,0.12590297]
[1743898135437,0.180635,83503.0,83501.0,0.12690297]
[1743898135635,0.181635,83503.0,83501.0,0.12990297]
[1743898137004,0.181635,83503.0,83501.0,0.13006667]
[1743898137142,0.011975,83502.0,83501.0,0.13006667]
[1743898137351,0.011975,83502.0,83501.0,0.0071637]
[1743898137985,0.02315889,83502.0,83501.0,0.0041637]
[1743898138186,0.02315889,83502.0,83501.0,0.0001637]
[1743898138467,0.02315889,83502.0,83501.0,0.0121637]
[1743898138920,0.02315889,83502.0,83501.0,0.0001637]
[1743898139134,0.02315889,83502.0,83501.0,0.0061637]
[1743898139697,0.01118389,83502.0,83501.0,0.12906667]
[1743898139891,0.01118389,83502.0,83501.0,0.17886667]
[1743898140145,0.01118389,83502.0,83501.0,0.19297094]
[1743898140345,0.01118389,83502.0,83501.0,0.17886667]
[1743898140549,0.02315889,83502.0,83501.0,0.17886667]
[1743898140846,0.011975,83502.0,83501.0,0.12906667]
[1743898141055,0.011975,83502.0,83501.0,0.0061637]
[1743898141235,0.011975,83502.0,83501.0,0.0121637]
[1743898141895,0.01666794,83505.0,83502.0,0.16766]
[1743898142093,0.011974,83512.0,83504.0,0.179631]
[1743898142357,0.167649,83508.0,83505.0,0.12290297]
[1743898142714,0.179626,83507.0,83505.0,0.12290297]
[1743898142937,0.19677749,83507.0,83505.0,0.12290297]
[1743898143115,0.01117798,83506.0,83505.0,0.12290297]
[1743898143724,0.01117798,83506.0,83505.0,0.37817014]
[1743898143931,0.01678681,83515.0,83512.0,0.16764]
[1743898144132,0.01117798,83517.0,83513.0,0.30251397]
[1743898144465,0.01117798,83517.0,83514.0,0.0459]
[1743898144673,0.01117798,83517.0,83515.0,0.12290297]
[1743898145426,0.01117798,83516.0,83515.0,0.12290297]
[1743898145827,0.19078298,83516.0,83515.0,0.12890297]
[1743898146252,0.19078298,83516.0,83515.0,0.13490297]
[1743898146943,0.22901798,83516.0,83515.0,0.012]
[1743898147149,0.19078298,83516.0,83515.0,0.006]
[1743898147367,0.19078298,83516.0,83502.0,0.060475]
[1743898147575,0.167645,83510.0,83503.0,0.30253497]
[1743898147748,0.167648,83508.0,83503.0,0.30253497]
[1743898148185,0.011974,83509.0,83503.0,0.30253497]
[1743898148719,0.01117798,83508.0,83506.0,0.167651]
[1743898148914,0.01117798,83508.0,83507.0,0.12290297]
[1743898149115,0.01117798,83508.0,83507.0,0.13487797]
[1743898151274,0.01117798,83508.0,83507.0,0.14087797]
[1743898151526,0.01117798,83508.0,83507.0,0.14687797]
[1743898154351,0.27117798,83508.0,83507.0,0.14687797]
[1743898154549,0.01117798,83508.0,83507.0,0.14687797]
[1743898155703,0.01117798,83508.0,83507.0,0.13490297]
[1743898155965,0.19079998,83508.0,83507.0,0.13490297]
[1743898156170,0.01117798,83508.0,83507.0,0.13490297]
[1743898156977,0.01117798,83508.0,83507.0,0.14687797]
[1743898157176,0.01117798,83508.0,83507.0,0.21427344]
[1743898157514,0.01117798,83508.0,83507.0,0.14687797]
[1743898158310,0.167633,83516.0,83510.0,0.011974]
[1743898158529,0.167633,83516.0,83511.0,0.12290297]
[1743898159506,0.167633,83516.0,83511.0,0.29054497]
[1743898159868,0.167633,83516.0,83511.0,0.30251897]
[1743898160610,0.167633,83516.0,83511.0,0.30851897]
[1743898161112,0.167633,83516.0,83511.0,0.31451897]
[1743898161517,0.179606,83516.0,83511.0,0.31451897]
[1743898162243,0.179609,83515.0,83511.0,0.13490297]
[1743898162455,0.167639,83513.0,83511.0,0.13490297]
[1743898162663,0.011974,83512.0,83511.0,0.13490297]
[1743898163361,0.011974,83512.0,83511.0,0.12890297]
[1743898163560,0.011974,83512.0,83511.0,0.13490297]
[1743898163985,0.011974,83512.0,83511.0,0.12890297]
[1743898164345,0.011974,83512.0,83511.0,0.13490297]
[1743898164551,0.011974,83512.0,83511.0,0.12890297]
[1743898164845,0.011974,83512.0,83511.0,0.13490297]
[1743898165567,0.07452995,83512.0,83511.0,0.012]
[1743898165934,0.12262995,83512.0,83511.0,0.006]
[1743898166255,0.12262995,83512.0,83511.0,0.012]
[1743898166796,0.35262995,83512.0,83511.0,0.006]
[1743898166939,0.011975,83502.0,83501.0,0.0001637]
[1743898167138,0.011975,83502.0,83501.0,0.12306667]
[1743898168343,0.011975,83502.0,83501.0,0.12906667]
[1743898168537,0.179635,83502.0,83501.0,0.12906667]
[1743898169168,0.179635,83502.0,83501.0,0.13506667]
[1743898170204,0.167637,83514.0,83508.0,0.011974]
[1743898170411,0.167637,83514.0,83509.0,0.12290297]
[1743898170412,0.179617,83511.0,83509.0,0.12290297]
[1743898170954,0.011974,83510.0,83509.0,0.12290297]
[1743898173348,0.011974,83510.0,83509.0,0.12890297]
[1743898174432,0.011974,83510.0,83509.0,0.13490297]
[1743898174598,0.067056,83510.0,83509.0,0.13490297]
[1743898175026,0.011974,83510.0,83509.0,0.13490297]
[1743898177270,0.011974,83510.0,83509.0,0.012]
[1743898177416,0.058174,83510.0,83509.0,0.012]
[1743898184946,0.011974,83510.0,83509.0,0.012]
[1743898190039,0.011974,83510.0,83509.0,0.0121637]
[1743898191078,0.167641,83512.0,83509.0,0.13506667]
[1743898191289,0.179615,83512.0,83510.0,0.12290297]
[1743898191468,0.011974,83511.0,83510.0,0.12290297]
[1743898191810,0.179615,83512.0,83510.0,0.12290297]
[1743898192109,0.179614,83513.0,83510.0,0.12290297]
[1743898192583,0.179615,83512.0,83510.0,0.12290297]
[1743898193065,0.011974,83511.0,83510.0,0.12290297]
[1743898193471,0.011974,83511.0,83510.0,0.12890297]
[1743898193872,0.011974,83511.0,83510.0,0.13490297]
[1743898194305,0.011974,83511.0,83510.0,0.12290297]
[1743898194512,0.011974,83511.0,83510.0,0.12890297]
[1743898194709,0.011974,83511.0,83510.0,0.13490297]
[1743898198034,0.179614,83513.0,83510.0,0.13490297]
[1743898198592,0.167642,83512.0,83510.0,0.13490297]
[1743898198800,0.179616,83512.0,83510.0,0.13490297]
[1743898199000,0.011974,83511.0,83510.0,0.13490297]
[1743898199413,0.011974,83511.0,83510.0,0.12890297]
[1743898199617,0.12968828,83513.0,83510.0,0.12890297]
[1743898199813,0.12968828,83513.0,83510.0,0.13490297]
[1743898200017,0.12968828,83513.0,83510.0,0.12890297]
[1743898200323,0.12968828,83513.0,83510.0,0.12290297]
[1743898200522,0.167642,83512.0,83510.0,0.13490297]
[1743898200975,0.12968828,83513.0,83510.0,0.12890297]
[1743898201285,0.12968828,83513.0,83510.0,0.19426851]
[1743898201489,0.12968828,83513.0,83510.0,0.18826851]
[1743898201715,0.179615,83512.0,83510.0,0.12890297]
[1743898202009,0.179615,83512.0,83510.0,0.13490297]
[1743898202777,0.179615,83512.0,83510.0,0.12890297]
[1743898203112,0.179615,83512.0,83510.0,0.13490297]
[1743898203317,0.179615,83512.0,83510.0,0.12890297]
[1743898203662,0.011974,83511.0,83510.0,0.13490297]
[1743898203827,0.06541471,83511.0,83510.0,0.13490297]
[1743898204041,0.06541471,83511.0,83510.0,0.12890297]
[1743898204387,0.06541471,83511.0,83510.0,0.13490297]
[1743898204589,0.31541471,83511.0,83510.0,0.13490297]
[1743898204789,0.06541471,83511.0,83510.0,0.13490297]
[1743898204992,0.059674,83511.0,83510.0,0.006]
[1743898206299,0.179618,83510.0,83509.0,0.0001637]
[1743898207794,0.179618,83510.0,83509.0,0.0061637]
[1743898208071,0.179618,83510.0,83509.0,0.0121637]
[1743898214985,0.227318,83510.0,83509.0,0.0121637]
[1743898215830,0.26474046,83510.0,83509.0,0.0121637]
[1743898216141,0.26474046,83510.0,83509.0,0.0061637]
[1743898216286,0.27383836,83510.0,83509.0,0.0061637]
[1743898216485,0.27383836,83510.0,83509.0,0.0121637]
[1743898216687,0.27383836,83510.0,83509.0,0.0061637]
[1743898216926,0.37449746,83510.0,83509.0,0.0121637]
[1743898217103,0.38903831,83510.0,83509.0,0.0121637]
[1743898217398,0.614622,83508.0,83507.0,4e-07]
[1743898217643,0.75206582,83508.0,83507.0,4e-07]
[1743898217842,0.8749635,83508.0,83507.0,4e-07]
[1743898218051,0.8749635,83508.0,83501.0,0.0001637]
[1743898218052,0.614635,83502.0,83501.0,1e-07]
[1743898218207,0.92579445,83502.0,83501.0,1e-07]
[1743898218420,0.88839882,83502.0,83501.0,1e-07]
[1743898218621,0.92577614,83502.0,83501.0,1e-07]
[1743898218827,0.9710074,83502.0,83501.0,1e-07]
[1743898219451,0.93363008,83502.0,83501.0,1e-07]
[1743898220030,0.93363008,83502.0,83501.0,0.0060001]
[1743898220546,0.93363008,83502.0,83501.0,1e-07]
[1743898220745,0.93463008,83502.0,83501.0,0.0030001]
[1743898221149,0.66166384,83502.0,83501.0,0.003]
[1743898221353,0.83432384,83502.0,83501.0,0.003]
[1743898221555,0.84529884,83502.0,83501.0,0.003]
[1743898222855,1.49265884,83502.0,83501.0,0.003]
[1743898222973,1.49265884,83502.0,83501.0,0.007]
[1743898226165,1.49265884,83502.0,83501.0,0.003]
[1743898226371,1.49265884,83502.0,83501.0,0.004]
[1743898226568,0.565952,83494.0,83493.0,0.00013657]
[1743898226773,0.6584769,83494.0,83493.0,0.00013657]
[1743898228020,0.565952,83494.0,83493.0,0.00013657]
[1743898228204,0.519652,83494.0,83493.0,0.00013657]
[1743898228377,0.520652,83494.0,83493.0,0.00013657]
[1743898229669,0.520652,83494.0,83493.0,0.00613657]
[1743898230283,0.790652,83494.0,83493.0,0.00613657]
[1743898230484,0.520652,83494.0,83493.0,0.00613657]
[1743898241630,0.520652,83494.0,83493.0,0.00630027]
[1743898242367,0.790652,83494.0,83493.0,0.00630027]
[1743898242614,0.520652,83494.0,83493.0,0.00630027]
[1743898244451,0.180652,83494.0,83493.0,0.00630027]
[1743898244670,0.180652,83494.0,83493.0,0.18998024]
[1743898244671,0.001,83494.0,83493.0,0.18998024]
[1743898244867,0.001,83494.0,83493.0,0.23340803]
[1743898245069,0.001,83494.0,83493.0,0.23580324]
[1743898245385,0.34,83503.0,83497.0,0.011976]
[1743898245601,0.0003274,83510.0,83503.0,0.167656]
[1743898245767,0.0003274,83510.0,83508.0,0.0485]
[1743898246111,0.0003274,83510.0,83508.0,0.17140297]
[1743898246409,0.1679714,83510.0,83508.0,0.17140297]
[1743898247281,0.1689714,83510.0,83508.0,0.18040297]
[1743898248071,0.0013274,83510.0,83508.0,0.18040297]
[1743898252260,0.1689714,83510.0,83508.0,0.13190297]
[1743898252767,0.1809454,83510.0,83508.0,0.13190297]
[1743898252962,0.1809454,83510.0,83508.0,0.13045604]
[1743898254172,0.1809454,83510.0,83508.0,0.12811177]
[1743898256843,0.0013274,83510.0,83508.0,0.12811177]
[1743898257162,0.1689724,83510.0,83508.0,0.12811177]
[1743898257363,0.06602398,83509.0,83508.0,0.009]
[1743898258121,0.011974,83509.0,83508.0,0.009]
[1743898258330,0.011974,83509.0,83508.0,0.006]
[1743898258545,0.167648,83508.0,83503.0,0.179632]
[1743898258774,0.167648,83508.0,83504.0,0.12290297]
[1743898259172,0.0003274,83510.0,83506.0,0.011975]
[1743898259394,0.0003274,83510.0,83508.0,0.167647]
[1743898259566,0.0003274,83510.0,83509.0,0.16860297]
[1743898259766,0.0003274,83510.0,83509.0,0.18057697]
[1743898260965,0.0003274,83510.0,83509.0,0.18657697]
[1743898263020,0.0003274,83510.0,83509.0,0.19257697]
[1743898269499,0.07151218,83510.0,83509.0,0.13490297]
[1743898269677,0.0123014,83510.0,83509.0,0.012]
[1743898270977,0.0003274,83510.0,83509.0,0.13490297]
[1743898271698,0.0003274,83510.0,83509.0,0.30254897]
[1743898271846,0.0003274,83510.0,83509.0,0.34844897]
[1743898272609,0.0003274,83510.0,83509.0,0.36042297]
[1743898274480,0.0003274,83510.0,83509.0,0.31452297]
[1743898275467,0.0003274,83510.0,83509.0,0.13490297]
[1743898275697,0.08228918,83510.0,83509.0,0.012]
[1743898275829,0.0123014,83510.0,83509.0,0.012]
[1743898288161,0.0003274,83510.0,83509.0,0.19307697]
[1743898288365,0.0003274,83510.0,83509.0,0.19547162]
[1743898288616,0.0003274,83510.0,83509.0,0.24467162]
[1743898288780,0.0003274,83510.0,83509.0,0.24227697]
[1743898288980,0.0003274,83510.0,83509.0,0.31921074]
[1743898290062,0.0003274,83510.0,83509.0,0.31321074]
[1743898290281,0.0003274,83510.0,83509.0,0.31921074]
[1743898290485,0.0003274,83510.0,83509.0,0.31321074]